bitfinex-derivatives/quotes_SOLF0:USTF0_20250321
["timestamp","ask_amount","ask_price","bid_price","bid_amount"]
[1742598130978,0.04952201,127.85,127.83,7.8255]
[1742598131279,0.04952201,127.85,127.82,39.1465228]
[1742598131476,0.04952201,127.85,127.84,7.8252]
[1742598131778,0.04952201,127.85,127.84,19.27969116]
[1742598132675,2.0141,127.9,127.84,11.45449116]
[1742598132880,15.53819116,127.91,127.82,45.38923164]
[1742598132881,13.42779116,127.91,127.87,11.45449116]
[1742598133177,21.24899116,127.91,127.89,7.8221]
[1742598133380,13.42779116,127.91,127.89,7.8221]
[1742598133779,13.4785023,127.91,127.89,7.87943361]
[1742598133972,13.4785023,127.91,127.9,7.8215]
[1742598133973,0.05071114,127.91,127.9,7.8215]
[1742598134175,0.05071114,127.91,127.9,47.01599116]
[1742598142479,1.114e-05,127.91,127.9,47.01599116]
[1742598142673,2.1904,127.99,127.9,47.01449116]
[1742598142674,13.64489116,127.99,127.9,47.01449116]
[1742598142878,13.64489116,127.99,127.94,11.45449116]
[1742598143177,7.8175,127.97,127.94,46.99319116]
[1742598143373,11.45449116,127.97,127.94,27.72]
[1742598143782,11.51467803,127.97,127.94,27.77808095]
[1742598144382,7.8179,127.96,127.94,27.77808095]
[1742598149882,7.8179,127.96,127.94,35.59718095]
[1742598152183,7.8179,127.96,127.94,27.77808095]
[1742598156594,7.8179,127.96,127.94,35.59708095]
[1742598157093,19.33227803,127.97,127.94,35.59708095]
[1742598159191,7.87778687,127.97,127.95,7.8183]
[1742598162596,0.06018687,127.97,127.96,7.8179]
[1742598162790,4.1301,128.0,127.96,11.45449116]
[1742598162993,11.45449116,128.01,127.97,39.07449116]
[1742598163296,19.26899116,128.02,127.99,7.8157]
[1742598164000,19.31954086,128.02,127.99,7.87097815]
[1742598164495,7.8149,128.01,127.99,0.05527815]
[1742598165000,19.31954086,128.02,127.99,0.05527815]
[1742598165903,11.45449116,128.0,127.99,0.05527815]
[1742598166603,19.26989116,128.0,127.99,0.05527815]
[1742598183114,19.26969116,128.01,127.99,0.05527815]
[1742598183310,11.45449116,128.01,127.99,0.05527815]
[1742598183909,11.45449116,128.0,127.99,0.05527815]
[1742598184511,19.26989116,128.0,127.99,0.05527815]
[1742598185217,7.8167,127.98,127.96,35.4376]
[1742598185404,7.8167,127.98,127.96,27.62]
[1742598185804,7.8167,127.98,127.96,35.4375]
[1742598186210,19.27079116,127.99,127.96,35.4375]
[1742598186414,0.05871782,127.98,127.96,35.48911475]
[1742598186916,7.87551782,127.98,127.96,35.48911475]
[1742598187116,11.45449116,127.97,127.96,0.05161475]
[1742598187311,0.05871782,127.98,127.96,0.05161475]
[1742598187312,11.51320898,127.98,127.96,0.05161475]
[1742598188612,19.32990898,127.98,127.96,7.86941475]
[1742598189120,19.32990898,127.98,127.96,0.05161475]
[1742598189315,7.8173,127.97,127.96,0.05161475]
[1742598190117,19.27179116,127.97,127.96,0.05161475]
[1742598192521,19.32990898,127.98,127.96,0.05161475]
[1742598193022,11.51320898,127.98,127.96,0.05161475]
[1742598193623,7.8173,127.97,127.96,0.05161475]
[1742598213742,0.05871782,127.98,127.96,27.67161475]
[1742598214755,0.05871782,127.98,127.97,7.8173]
[1742598215151,7.87551782,127.98,127.96,27.67161475]
[1742598215353,7.87551782,127.98,127.96,35.48921475]
[1742598215654,0.05871782,127.98,127.96,27.67161475]
[1742598215858,0.05871782,127.98,127.97,7.8173]
[1742598239774,7.87531782,127.98,127.97,7.8173]
[1742598240276,0.05871782,127.98,127.97,7.8173]
[1742598240576,0.05871782,127.98,127.96,35.48911475]
[1742598241175,7.87561782,127.98,127.96,35.48911475]
[1742598242070,7.8173,127.97,127.96,27.67161475]
[1742598242272,7.8173,127.97,127.96,0.05161475]
[1742598242779,7.87571782,127.98,127.96,7.86951475]
[1742598242978,0.05871782,127.98,127.96,7.86951475]
[1742598243172,7.87571782,127.98,127.96,7.86951475]
[1742598246775,0.05871782,127.98,127.97,7.8173]
[1742598248476,0.05871782,127.98,127.97,35.4173]
[1742598248681,0.05871782,127.98,127.97,46.87179116]
[1742598250776,1.782e-05,127.98,127.97,46.87179116]
[1742598254079,19.26789116,128.04,128.01,7.8145]
[1742598254080,7.8134,128.04,128.01,7.8145]
[1742598254278,7.8134,128.04,128.01,46.86899116]
[1742598255076,7.8134,128.04,128.01,46.91909949]
[1742598255278,7.87130113,128.04,128.01,46.91909949]
[1742598258989,7.8136,128.03,128.01,46.91909949]
[1742598263088,7.8142,128.02,128.01,27.65010833]
[1742598275114,7.8142,128.02,128.01,0.05010833]
[1742598282713,7.814,128.03,128.01,0.05010833]
[1742598284016,0.05790113,128.04,128.03,7.8136]
[1742598284221,0.05790113,128.04,128.03,46.84809116]
[1742598291223,11.9992,128.09,128.06,7.8114]
[1742598291523,11.9992,128.09,128.06,35.3914]
[1742598291722,7.8106,128.08,128.06,35.3914]
[1742598292218,7.8106,128.08,128.06,35.44286443]
[1742598292425,7.87076841,128.08,128.06,27.63146443]
[1742598295623,7.87076841,128.08,128.06,35.44316443]
[1742598300124,0.06016841,128.08,128.07,7.8111]
[1742598300429,0.06016841,128.08,128.07,19.26559116]
[1742598302027,42.88958349,128.13,128.07,11.45449116]
[1742598302240,42.88958349,128.13,128.12,11.45449116]
[1742598302523,42.88958349,128.13,128.12,46.84259116]
[1742598302929,10.72239587,128.14,128.12,39.03449116]
[1742598303132,10.77327165,128.14,128.12,39.03449116]
[1742598303625,10.77327165,128.14,128.13,19.26199116]
[1742598304329,10.77327165,128.14,128.13,11.45449116]
[1742598306031,0.05087578,128.14,128.13,11.45449116]
[1742598307130,7.8047,128.18,128.13,11.45449116]
[1742598307331,7.8047,128.18,128.15,11.45449116]
[1742598307527,7.8047,128.18,128.15,39.01449116]
[1742598307829,7.8051,128.17,128.15,39.01449116]
[1742598308030,11.45449116,128.18,128.15,27.56]
[1742598308227,11.45449116,128.18,128.15,27.61975583]
[1742598308428,7.8057,128.16,128.15,27.61975583]
[1742598308625,0.05951286,128.18,128.15,27.61975583]
[1742598308829,7.86431286,128.18,128.16,11.45449116]
[1742598309024,7.86431286,128.18,128.17,11.45449116]
[1742598309225,0.05951286,128.18,128.17,11.45449116]
[1742598311227,864.0166547,128.29,128.17,269.03449116]
[1742598311423,4.1033,128.24,128.2,11.45449116]
[1742598311627,4.1033,128.24,128.21,27.56]
[1742598311828,7.8023,128.22,128.21,27.56]
[1742598312933,7.82805605,128.23,128.21,27.56]
[1742598313132,0.02635605,128.23,128.21,27.56]
[1742598313630,7.802,128.22,128.21,39.01449116]
[1742598314033,0.02635605,128.23,128.21,39.01449116]
[1742598314234,7.802,128.22,128.21,39.01449116]
[1742598314434,7.802,128.22,128.21,27.56]
[1742598317640,7.802,128.22,128.21,39.01449116]
[1742598322047,0.02635605,128.23,128.21,39.01449116]
[1742598322441,0.02635605,128.23,128.22,11.45449116]
[1742598323248,0.02635605,128.23,128.22,19.25649116]
[1742598323936,4.3208,128.28,128.22,11.45449116]
[1742598324136,4.3208,128.28,128.24,19.25509116]
[1742598324341,4.3208,128.28,128.25,27.54]
[1742598324539,7.7992,128.27,128.25,27.54]
[1742598324745,4.3208,128.28,128.26,11.45449116]
[1742598325147,4.3208,128.28,128.26,0.05373566]
[1742598326244,2.1652,128.28,128.26,11.50822682]
[1742598326444,13.60089116,128.3,128.26,11.50822682]
[1742598326645,7.798,128.29,128.26,11.50822682]
[1742598327051,2.1464,128.3,128.26,11.50822682]
[1742598327244,13.60089116,128.3,128.26,11.50822682]
[1742598327449,7.7987,128.28,128.26,11.50822682]
[1742598328446,7.7981,128.29,128.26,11.50822682]
[1742598328843,2.1464,128.3,128.27,11.45449116]
[1742598329053,7.7982,128.29,128.28,27.54]
[1742598329654,7.7974,128.3,128.28,38.99449116]
[1742598330456,7.7974,128.3,128.29,11.45449116]
[1742598331855,7.7978,128.29,128.28,38.99449116]
[1742598332054,13.63749116,128.31,128.27,11.45449116]
[1742598332251,13.63749116,128.31,128.26,39.02822682]
[1742598333162,7.799,128.27,128.26,27.57373566]
[1742598346377,7.7987,128.28,128.26,27.57373566]
[1742598348282,7.799,128.27,128.26,27.57373566]
[1742598349074,11.45449116,128.3,128.26,27.57373566]
[1742598349785,7.799,128.27,128.26,27.57373566]
[1742598351483,7.799,128.27,128.26,35.37333566]
[1742598351876,11.45449116,128.3,128.26,35.37333566]
[1742598352080,2.183,128.31,128.27,7.7986]
[1742598352081,13.63749116,128.31,128.27,7.7986]
[1742598352485,7.7976,128.3,128.27,7.7986]
[1742598352687,7.7976,128.3,128.27,19.25309116]
[1742598353183,7.7976,128.3,128.28,7.7984]
[1742598353375,9.9799,128.31,128.29,38.97449116]
[1742598353887,9.8485,128.32,128.29,39.0262707]
[1742598354083,9.8485,128.32,128.3,11.45449116]
[1742598354485,9.8485,128.32,128.3,19.25139116]
[1742598354678,7.7965,128.31,128.3,11.45449116]
[1742598354884,7.7965,128.31,128.29,39.0262707]
[1742598355388,7.7965,128.31,128.29,46.8237707]
[1742598356088,7.7965,128.31,128.29,39.0262707]
[1742598356586,9.8486,128.32,128.29,46.8237707]
[1742598357287,7.7966,128.31,128.29,46.8237707]
[1742598358586,7.7959,128.33,128.3,11.45449116]
[1742598358787,2.0233,128.34,128.31,11.45449116]
[1742598358983,2.0233,128.34,128.32,38.97449116]
[1742598359384,2.0233,128.34,128.32,46.82800143]
[1742598359987,2.0233,128.34,128.32,39.03250143]
[1742598360190,2.0233,128.34,128.32,27.57801027]
[1742598360685,7.7953,128.33,128.32,27.57801027]
[1742598361691,7.7971,128.3,128.29,257.24]
[1742598361989,11.45449116,128.3,128.26,27.52]
[1742598362986,0.05669769,128.29,128.27,0.04917374]
[1742598363590,7.7988,128.28,128.27,0.04917374]
[1742598367894,7.7988,128.28,128.24,257.22]
[1742598367895,7.8002,128.25,128.24,257.22]
[1742598374900,7.85316324,128.26,128.24,7.8007]
[1742598375693,7.8002,128.25,128.23,46.83045262]
[1742598382799,7.8008,128.24,128.23,39.02945262]
[1742598383802,7.8008,128.24,128.23,27.57496146]
[1742598384003,7.8008,128.24,128.23,0.05496146]
[1742598394204,46.77529116,128.24,128.23,0.05496146]
[1742598395101,38.97449116,128.24,128.21,257.28]
[1742598395307,7.802,128.22,128.21,257.28]
[1742598395901,11.45449116,128.22,128.18,11.45449116]
[1742598396408,11.45449116,128.22,128.19,0.05672118]
[1742598396409,0.05855614,128.21,128.19,0.05672118]
[1742598396606,7.8032,128.2,128.19,0.05672118]
[1742598398813,7.86135614,128.21,128.19,0.05672118]
[1742598400411,0.05855614,128.21,128.19,7.86032118]
[1742598401507,0.05855614,128.21,128.19,19.31481234]
[1742598401710,7.86125614,128.21,128.19,19.31481234]
[1742598406013,0.05855614,128.21,128.2,7.8032]
[1742598406409,0.05855614,128.21,128.19,11.51121234]
[1742598407311,7.86115614,128.21,128.19,19.31471234]
[1742598418816,0.05855614,128.21,128.2,46.77769116]
[1742598421311,7.7999,128.26,128.24,7.8006]
[1742598422412,7.7999,128.26,128.23,46.77549116]
[1742598422711,7.85977722,128.26,128.24,0.05465108]
[1742598424606,7.85977722,128.26,128.24,7.85525108]
[1742598425316,7.8002,128.25,128.24,0.05465108]
[1742598427920,7.8002,128.25,128.24,7.85545108]
[1742598429119,7.8002,128.25,128.24,0.05465108]
[1742598430217,7.85977722,128.26,128.24,7.85545108]
[1742598430819,0.05987722,128.26,128.24,7.85545108]
[1742598431019,7.85977722,128.26,128.24,7.85545108]
[1742598431816,0.05987722,128.26,128.25,7.8002]
[1742598432014,0.05987722,128.26,128.25,19.25469116]
[1742598435330,0.05987722,128.26,128.25,7.8002]
[1742598436920,0.05987722,128.26,128.25,19.25469116]
[1742598437921,2.0904,128.31,128.29,7.7976]
[1742598438119,7.7968,128.31,128.29,7.7976]
[1742598438319,7.7968,128.31,128.28,11.45449116]
[1742598438520,54.34407465,128.33,128.3,7.7971]
[1742598438926,7.7962,128.32,128.3,7.7971]
[1742598439126,0.04371211,128.33,128.31,7.7965]
[1742598439325,7.83931211,128.33,128.31,7.7965]
[1742598440129,7.83931211,128.33,128.3,46.80558336]
[1742598440719,0.04371211,128.33,128.32,11.45449116]
[1742598441327,0.04371211,128.33,128.31,11.45449116]
[1742598441633,0.04371211,128.33,128.3,39.00878336]
[1742598442523,7.7959,128.32,128.3,39.00878336]
[1742598444527,7.7959,128.32,128.3,46.80588336]
[1742598444738,7.83921211,128.33,128.31,11.45449116]
[1742598447933,7.7959,128.32,128.31,11.45449116]
[1742598449438,7.83941211,128.33,128.31,19.25099116]
[1742598450533,7.7959,128.32,128.31,11.45449116]
[1742598450737,0.04371211,128.33,128.31,11.45449116]
[1742598451240,7.83961211,128.33,128.31,11.45449116]
[1742598452436,7.7959,128.32,128.31,11.45449116]
[1742598452639,0.04371211,128.33,128.31,19.25099116]
[1742598452838,0.04371211,128.33,128.31,11.45449116]
[1742598454137,7.7959,128.32,128.31,11.45449116]
[1742598458348,7.7965,128.31,128.3,39.00878336]
[1742598460750,7.7963,128.32,128.3,39.00878336]
[1742598461449,7.7963,128.32,128.3,38.98878336]
[1742598461842,7.7963,128.32,128.3,46.78588336]
[1742598465750,7.7959,128.32,128.3,46.78588336]
[1742598466655,7.7959,128.32,128.31,11.45449116]
[1742598468050,7.83931211,128.33,128.31,11.45449116]
[1742598468352,7.83931211,128.33,128.31,19.25079116]
[1742598471154,7.83931211,128.33,128.32,11.45449116]
[1742598471858,0.04371211,128.33,128.32,19.25039116]
[1742598472456,4.1537,128.38,128.34,7.7943]
[1742598472658,4.1537,128.38,128.34,46.72879116]
[1742598472862,4.1537,128.38,128.34,38.93449116]
[1742598472863,2.0634,128.38,128.34,38.93449116]
[1742598473361,2.0634,128.38,128.35,19.24829116]
[1742598473755,9.8561,128.38,128.35,19.30587283]
[1742598474463,9.8561,128.38,128.36,7.7934]
[1742598474658,7.7931,128.37,128.35,11.51207283]
[1742598474862,2.0634,128.38,128.35,11.51207283]
[1742598476159,2.0634,128.38,128.35,0.05758167]
[1742598476463,7.7935,128.36,128.35,0.05758167]
[1742598478963,7.7933,128.37,128.35,7.85168167]
[1742598480265,7.7919,128.39,128.37,7.7928]
[1742598480460,7.7919,128.39,128.37,46.72729116]
[1742598481261,50.68098349,128.4,128.38,7.7923]
[1742598481666,50.68098349,128.4,128.38,7.851782]
[1742598481870,50.68098349,128.4,128.38,0.059482]
[1742598482372,7.7907,128.41,128.38,19.30587316]
[1742598482669,7.7907,128.41,128.38,11.51397316]
[1742598482869,7.7907,128.41,128.38,19.30587316]
[1742598483069,7.7912,128.4,128.38,19.30587316]
[1742598484676,7.7917,128.39,128.38,11.51397316]
[1742598486169,7.7914,128.4,128.38,19.30627316]
[1742598486369,15.76469116,128.43,128.38,11.51397316]
[1742598486563,11.45449116,128.41,128.38,0.059482]
[1742598486771,7.7917,128.39,128.38,0.059482]
[1742598487671,7.7929,128.37,128.36,284.6]
[1742598487872,7.7929,128.37,128.36,257.14]
[1742598493873,9.9986198,128.38,128.36,264.9331]
[1742598495374,9.9986198,128.38,128.36,257.14]
[1742598495375,7.7929,128.37,128.36,257.14]
[1742598497381,7.8462198,128.38,128.36,257.14]
[1742598497779,7.8462198,128.38,128.36,264.9334]
[1742598498582,7.8462198,128.38,128.36,257.14]
[1742598498777,7.7929,128.37,128.36,257.14]
[1742598499579,7.7929,128.37,128.35,19.30061858]
[1742598500578,7.7935,128.36,128.35,0.05242742]
[1742598534014,11.30255002,128.38,128.35,0.05242742]
[1742598534213,11.30255002,128.38,128.35,27.51242742]
[1742598534414,0.0536198,128.38,128.35,27.51242742]
[1742598534816,7.8461198,128.38,128.36,7.7934]
[1742598536819,0.0536198,128.38,128.37,7.7929]
[1742598539122,0.0536198,128.38,128.37,19.24739116]
[1742598539425,42.88958349,128.41,128.4,7.7911]
[1742598539628,42.88958349,128.41,128.4,19.24559116]
[1742598540323,42.88958349,128.42,128.41,7.7905]
[1742598540622,42.88958349,128.42,128.41,11.45449116]
[1742598541019,50.67948349,128.42,128.4,11.51201847]
[1742598541624,50.67948349,128.42,128.4,0.05752731]
[1742598541923,7.7905,128.41,128.4,0.05752731]
[1742598543627,19.24499116,128.41,128.4,0.05752731]
[1742598545323,11.45449116,128.41,128.36,257.12]
[1742598545626,7.7929,128.37,128.36,257.12]
[1742598547423,19.24739116,128.37,128.36,257.12]
[1742598549128,7.7935,128.36,128.35,0.05957653]
[1742598554230,7.7932,128.37,128.35,0.05957653]
[1742598557034,7.7935,128.36,128.35,0.05957653]
[1742598558137,7.7933,128.37,128.35,0.05957653]
[1742598558437,19.24779116,128.37,128.35,0.05957653]
[1742598559636,19.24779116,128.37,128.35,7.85367653]
[1742598559935,7.7933,128.37,128.35,7.85367653]
[1742598560136,19.29970476,128.38,128.35,7.85367653]
[1742598560337,7.8452136,128.38,128.35,7.85367653]
[1742598560937,7.793,128.37,128.35,7.85367653]
[1742598561127,11.45449116,128.37,128.35,0.05957653]
[1742598561332,11.45449116,128.36,128.35,0.05957653]
[1742598562239,19.24799116,128.36,128.35,0.05957653]
[1742598569140,7.7956,128.33,128.31,38.91449116]
[1742598569337,7.7956,128.33,128.31,27.46]
[1742598570335,7.84931042,128.33,128.31,27.51676092]
[1742598570538,7.84931042,128.33,128.31,35.31326092]
[1742598571540,0.05371042,128.33,128.31,35.31326092]
[1742598572041,0.05371042,128.33,128.31,46.76775208]
[1742598572937,0.05371042,128.33,128.32,7.7959]
[1742598574140,0.05371042,128.33,128.32,19.25039116]
[1742598574537,54.60886494,128.39,128.35,7.7936]
[1742598575142,54.60886494,128.39,128.34,46.70889116]
[1742598575344,7.793,128.37,128.34,35.2544]
[1742598575645,0.05666669,128.37,128.35,7.794]
[1742598576142,0.05666669,128.37,128.36,7.7935]
[1742598576538,0.05666669,128.37,128.34,38.96739914]
[1742598576943,0.05666669,128.37,128.35,7.7938]
[1742598578545,7.84956669,128.37,128.35,7.7938]
[1742598583453,0.05666669,128.37,128.35,7.7938]
[1742598584252,7.84956669,128.37,128.35,7.7938]
[1742598585149,19.30405785,128.37,128.34,35.30730798]
[1742598585354,11.45449116,128.35,128.34,0.05290798]
[1742598585853,19.24859116,128.35,128.34,0.05290798]
[1742598597657,7.7959,128.32,128.3,257.12]
[1742598598663,7.84807937,128.32,128.3,257.1792194]
[1742598599363,7.84807937,128.32,128.3,264.9763194]
[1742598599660,0.05217937,128.32,128.3,257.1792194]
[1742598599965,0.05217937,128.32,128.3,268.63371056]
[1742598600766,0.05217937,128.32,128.31,7.7965]
[1742598601963,0.05217937,128.32,128.3,276.43061056]
[1742598602766,0.05217937,128.32,128.31,7.7965]
[1742598604265,0.05217937,128.32,128.31,19.25099116]
[1742598604459,22.03752366,128.37,128.35,7.7939]
[1742598604665,22.03752366,128.37,128.36,11.45449116]
[1742598604868,22.03752366,128.37,128.36,38.89449116]
[1742598605168,22.03752366,128.37,128.36,46.68799116]
[1742598605169,10.78859344,128.37,128.36,46.68799116]
[1742598606871,0.05956944,128.38,128.37,7.7929]
[1742598610377,0.05956944,128.38,128.36,38.89449116]
[1742598610378,0.05956944,128.38,128.36,27.44]
[1742598610875,7.7929,128.37,128.36,27.44]
[1742598611180,7.7929,128.37,128.35,0.05383602]
[1742598611682,7.7929,128.37,128.35,7.84793602]
[1742598612083,7.7929,128.37,128.35,0.05383602]
[1742598612284,7.85196944,128.38,128.35,0.05383602]
[1742598612578,7.85196944,128.38,128.36,7.7935]
[1742598612784,0.05956944,128.38,128.35,11.50832718]
[1742598612985,0.05956944,128.38,128.36,268.55449116]
[1742598613282,0.05956944,128.38,128.37,27.44]
[1742598613482,0.05956944,128.38,128.37,35.2329]
[1742598618990,0.05956944,128.38,128.37,46.68739116]
[1742598622690,11.45449116,128.44,128.37,38.89449116]
[1742598622893,38.89449116,128.45,128.4,11.45449116]
[1742598623093,38.89449116,128.45,128.4,38.89449116]
[1742598623392,7.7892,128.44,128.41,7.79]
[1742598623792,38.89449116,128.45,128.41,7.84905376]
[1742598624091,7.7895,128.43,128.41,7.84905376]
[1742598624593,7.7895,128.43,128.41,0.05905376]
[1742598625495,7.7899,128.42,128.41,0.05905376]
[1742598625795,11.45449116,128.44,128.41,0.05905376]
[1742598625996,7.7896,128.43,128.41,0.05905376]
[1742598626200,11.45449116,128.44,128.41,0.05905376]
[1742598626496,31.585,128.46,128.41,0.05905376]
[1742598626497,19.24439116,128.42,128.41,0.05905376]
[1742598641708,7.7924,128.38,128.36,284.54]
[1742598642205,11.45449116,128.38,128.36,257.1]
[1742598642806,11.50498448,128.38,128.36,257.15310136]
[1742598643209,7.7929,128.37,128.36,257.15310136]
[1742598648114,19.24739116,128.37,128.36,257.15310136]
[1742598648318,19.24739116,128.37,128.36,0.05310136]
[1742598648813,46.68739116,128.37,128.36,0.05310136]
[1742598652623,38.89449116,128.37,128.31,257.06]
[1742598652920,11.45449116,128.34,128.31,257.06]
[1742598653317,7.7959,128.33,128.31,257.06]
[1742598653715,7.7959,128.33,128.31,257.11887209]
[1742598653716,7.84606602,128.33,128.31,257.11887209]
[1742598654122,19.30055718,128.33,128.31,257.11887209]
[1742598654419,7.7959,128.32,128.31,257.11887209]
[1742598655119,19.30025718,128.33,128.31,257.11887209]
[1742598657718,7.7959,128.32,128.31,257.11887209]
[1742598659122,7.84586602,128.33,128.31,257.11887209]
[1742598660325,0.05016602,128.33,128.31,257.11887209]
[1742598661020,0.05016602,128.33,128.32,7.7959]
[1742598666030,0.05016602,128.33,128.32,35.2359]
[1742598666432,0.05016602,128.33,128.32,46.69039116]
[1742598667631,0.05016602,128.33,128.32,35.2359]
[1742598667826,0.05016602,128.33,128.31,268.57336325]
[1742598667827,11.50465718,128.33,128.31,257.11887209]
[1742598668131,19.30025718,128.33,128.31,257.11887209]
[1742598668432,11.50465718,128.33,128.31,257.11887209]
[1742598668731,19.25039116,128.32,128.31,0.05887209]
[1742598669325,7.7982,128.29,128.26,264.9393]
[1742598670533,7.85498595,128.29,128.26,264.99574491]
[1742598670925,0.05678595,128.29,128.26,257.19644491]
[1742598671526,0.05678595,128.29,128.26,264.99554491]
[1742598671721,0.05678595,128.29,128.26,257.19644491]
[1742598672129,0.05678595,128.29,128.27,7.7989]
[1742598676229,7.85458595,128.29,128.26,264.99564491]
[1742598676429,0.05678595,128.29,128.26,264.99564491]
[1742598678742,11.51127711,128.29,128.26,264.99564491]
[1742598679042,19.30907711,128.29,128.26,264.99564491]
[1742598680037,0.05678595,128.29,128.26,268.65093607]
[1742598680341,0.05678595,128.29,128.28,11.45449116]
[1742598680736,0.05678595,128.29,128.28,19.25289116]
[1742598681635,19.25019116,128.33,128.29,7.7972]
[1742598682035,7.796,128.32,128.29,7.7972]
[1742598682638,7.85288953,128.32,128.29,7.84644546]
[1742598682839,7.7966,128.31,128.29,0.04924546]
[1742598683739,7.7966,128.31,128.29,7.84704546]
[1742598683937,7.7971,128.3,128.29,0.04924546]
[1742598686042,19.25159116,128.3,128.29,0.04924546]
[1742598687948,7.7971,128.3,128.29,0.04924546]
[1742598690646,19.25159116,128.3,128.29,0.04924546]
[1742598695852,7.7971,128.3,128.29,0.04924546]
[1742598700956,19.25159116,128.3,128.29,0.04924546]
[1742598701646,19.25159116,128.3,128.26,284.58]
[1742598701647,7.799,128.27,128.26,257.14]
[1742598709355,7.7996,128.26,128.25,0.05354086]
[1742598709552,19.25409116,128.26,128.25,0.05354086]
[1742598721156,19.25369116,128.27,128.25,0.05354086]
[1742598721663,19.25389116,128.27,128.25,0.05354086]
[1742598722364,7.7996,128.26,128.25,0.05354086]
[1742598724263,19.25409116,128.26,128.25,0.05354086]
[1742598731765,7.7996,128.26,128.25,0.05354086]
[1742598737368,27.51844099,128.28,128.25,0.05354086]
[1742598737369,0.05844099,128.28,128.25,0.05354086]
[1742598737571,0.05844099,128.28,128.25,11.50803202]
[1742598737771,0.05844099,128.28,128.26,7.7993]
[1742598737971,7.85704099,128.28,128.26,7.7993]
[1742598738570,7.799,128.27,128.26,7.7993]
[1742598739270,7.85714099,128.28,128.26,7.7993]
[1742598741874,0.05844099,128.28,128.25,0.05354086]
[1742598742874,7.85714099,128.28,128.26,7.7991]
[1742598748072,0.05844099,128.28,128.25,0.05354086]
[1742598748381,11.51293215,128.28,128.25,0.05354086]
[1742598748576,7.7994,128.27,128.25,0.05354086]
[1742598748880,11.51293215,128.28,128.25,0.05354086]
[1742598749082,7.799,128.27,128.25,0.05354086]
[1742598749284,11.51293215,128.28,128.25,0.05354086]
[1742598749881,7.7996,128.26,128.25,0.05354086]
[1742598750981,19.25409116,128.26,128.25,0.05354086]
[1742598755190,7.7996,128.26,128.25,0.05354086]
[1742598759088,19.25409116,128.26,128.25,0.05354086]
[1742598760695,7.7996,128.26,128.25,0.05354086]
[1742598763300,7.8017,128.23,128.21,284.72]
[1742598764193,7.8017,128.23,128.21,257.28]
[1742598764499,7.802,128.22,128.21,257.33029877]
[1742598766099,7.85751188,128.23,128.21,257.33029877]
[1742598771104,7.802,128.22,128.21,257.33029877]
[1742598773309,7.85761188,128.23,128.21,257.33029877]
[1742598774511,7.802,128.22,128.21,257.33029877]
[1742598775911,7.802,128.22,128.21,0.05029877]
[1742598778118,7.85761188,128.23,128.21,0.05029877]
[1742598778707,7.802,128.22,128.21,0.05029877]
[1742598784317,7.85751188,128.23,128.21,0.05029877]
[1742598784816,0.05581188,128.23,128.21,0.05029877]
[1742598785121,7.802,128.22,128.21,0.05029877]
[1742598817140,19.14056461,128.23,128.21,7.85289877]
[1742598818442,34.53169806,128.23,128.21,7.85289877]
[1742598819240,19.14056461,128.23,128.21,7.85289877]
[1742598820239,7.85751188,128.23,128.21,7.85289877]
[1742598820938,19.14809801,128.23,128.21,7.85289877]
[1742598822334,11.34639801,128.23,128.21,0.05029877]
[1742598822538,11.34639801,128.23,128.22,35.242]
[1742598822738,43.13096417,128.25,128.22,38.89449116]
[1742598822938,43.13096417,128.25,128.24,19.25529116]
[1742598825942,0.05682226,128.26,128.25,7.8002]
[1742598826142,0.05682226,128.26,128.25,46.69469116]
[1742598827345,2.0579,128.31,128.25,38.89449116]
[1742598827640,2.0579,128.31,128.28,11.45449116]
[1742598827942,2.0579,128.31,128.3,7.7971]
[1742598829143,2.14582656,128.32,128.31,7.7965]
[1742598829342,0.05602656,128.32,128.31,7.7965]
[1742598834546,0.05602656,128.32,128.29,38.94627024]
[1742598835146,0.05602656,128.32,128.3,7.7966]
[1742598835449,0.05602656,128.32,128.29,38.94627024]
[1742598836544,0.05602656,128.32,128.31,7.7965]
[1742598840446,0.05602656,128.32,128.31,19.25099116]
[1742598841452,7.85232656,128.32,128.29,284.73177908]
[1742598841946,0.05602656,128.32,128.29,292.52927908]
[1742598842151,7.7968,128.31,128.29,284.73177908]
[1742598844449,7.7971,128.3,128.29,284.73177908]
[1742598847048,0.05602656,128.32,128.29,296.18627024]
[1742598847248,0.05602656,128.32,128.31,11.45449116]
[1742598847654,0.05602656,128.32,128.31,19.25099116]
[1742598850556,13.54359116,128.38,128.35,7.7937]
[1742598850756,2.0891,128.38,128.35,7.7937]